bitfinex-derivatives/quotes_ETHF0:USTF0_20220103
["timestamp","ask_amount","ask_price","bid_price","bid_amount"]
[1641229235375,0.53516472,3744.5,3744.4,1.10035124]
[1641229236175,0.53516472,3744.5,3744.3,1.50170374]
[1641229237177,0.30517372,3744.4,3744.3,1.50170374]
[1641229237676,0.30517372,3744.4,3744.3,2.3097406]
[1641229238176,0.30517372,3744.4,3744.3,0.80803686]
[1641229238578,0.30517372,3744.4,3743.4,3.04881387]
[1641229238579,16.21161213,3744.4,3743.4,3.04881387]
[1641229238777,1.5,3744.1,3743.4,3.04881387]
[1641229238980,3.0,3743.8,3743.4,3.04881387]
[1641229239278,3.7229,3743.8,3743.4,3.04881387]
[1641229239778,3.7229,3743.8,3743.5,0.99506279]
[1641229239977,0.229991,3743.7,3743.5,0.99506279]
[1641229240281,1.729991,3743.7,3743.5,0.99506279]
[1641229240779,2.03516472,3743.7,3743.5,0.99506279]
[1641229241177,0.53516472,3743.7,3743.5,0.99506279]
[1641229241378,13.51516472,3743.7,3743.5,0.99506279]
[1641229241577,0.53516472,3743.7,3743.1,0.3982]
[1641229241778,0.30517372,3743.7,3743.4,0.045757]
[1641229241978,0.229991,3743.6,3743.4,0.045757]
[1641229242378,0.53516472,3743.6,3743.4,0.045757]
[1641229242981,0.53516472,3743.6,3743.2,1.74990496]
[1641229243179,0.229991,3743.6,3743.2,1.74990496]
[1641229243380,1.20517275,3743.7,3743.2,1.74990496]
[1641229243582,1.20517275,3743.8,3743.6,1.5]
[1641229244182,1.80335806,3744.4,3743.6,1.5]
[1641229244383,1.80335806,3744.4,3743.3,0.045757]
[1641229244384,1.20523377,3744.4,3744.1,1.5]
[1641229244683,1.20523377,3744.4,3744.2,0.68439018]
[1641229245485,0.27548363,3744.6,3744.2,0.68439018]
[1641229245683,0.27548363,3744.6,3744.3,0.045757]
[1641229246484,2.00479,3744.7,3744.4,1.5]
[1641229246885,2.00479,3744.7,3744.3,0.045757]
[1641229248386,2.00479,3744.7,3744.4,1.5]
[1641229249886,2.00479,3744.7,3744.3,0.045757]
[1641229250290,2.00479,3744.7,3744.3,1.545757]
[1641229250490,2.00479,3744.7,3744.3,0.045757]
[1641229252188,2.00479,3744.7,3744.2,0.68439018]
[1641229252789,2.00479,3744.7,3744.6,1.49978338]
[1641229252991,2.234781,3744.7,3744.6,1.49978338]
[1641229254794,2.49422966,3744.7,3744.3,1.49978338]
[1641229255697,1.33492456,3744.4,3744.3,1.49978338]
[1641229255894,0.229991,3744.4,3743.5,4.97783281]
[1641229256093,0.229991,3744.4,3743.7,2.96230679]
[1641229257094,1.20515789,3744.2,3743.7,2.96230679]
[1641229257294,1.20515789,3744.2,3743.7,3.00806379]
[1641229257594,1.20515789,3744.2,3743.7,2.96230679]
[1641229258197,1.46460655,3744.2,3743.7,2.96230679]
[1641229258597,1.20515789,3744.0,3743.7,2.96230679]
[1641229258796,0.229991,3743.9,3743.7,2.96230679]
[1641229258996,1.20515789,3744.0,3743.7,2.96230679]
[1641229259598,0.229991,3743.9,3743.7,2.96230679]
[1641229259797,1.20515789,3744.0,3743.7,2.96230679]
[1641229259996,0.25944866,3744.0,3743.7,2.96230679]
[1641229260596,1.20515789,3744.1,3743.7,2.96230679]
[1641229260800,1.20515789,3744.5,3743.7,2.96230679]
[1641229261397,0.128157,3744.4,3743.7,2.96230679]
[1641229261796,1.33331489,3744.4,3743.7,2.96230679]
[1641229263505,0.22941769,3744.3,3743.7,2.96230679]
[1641229263702,1.43457558,3744.3,3743.7,2.96230679]
[1641229264404,1.43457558,3744.3,3743.7,4.27893589]
[1641229265204,1.43457558,3744.3,3744.0,1.50269732]
[1641229265404,1.43457558,3744.3,3744.0,2.25619732]
[1641229266605,0.22941769,3744.3,3744.1,1.50269732]
[1641229267410,0.229991,3744.2,3744.1,1.50269732]
[1641229267808,0.229991,3744.2,3744.0,1.50269732]
[1641229268010,1.43457558,3744.3,3744.0,1.50269732]
[1641229268409,2.83515983,3744.1,3744.0,1.50269732]
[1641229268612,2.2165,3744.1,3743.1,3.37124281]
[1641229268811,1.5,3743.4,3743.1,0.3982]
[1641229269010,0.128157,3743.3,3743.1,0.3982]
[1641229269209,0.962857,3743.3,3743.1,0.3982]
[1641229269412,0.229991,3743.2,3743.1,0.3982]
[1641229269711,2.00479,3743.2,3743.1,0.3982]
[1641229270810,2.234781,3743.2,3743.1,0.3982]
[1641229271009,2.00479,3743.2,3742.9,0.045757]
[1641229271212,2.00479,3743.2,3742.9,0.451757]
[1641229273111,2.00479,3743.2,3742.9,1.951757]
[1641229273311,2.00479,3743.2,3742.9,0.451757]
[1641229274011,2.00479,3743.4,3742.9,0.451757]
[1641229274211,2.00479,3743.4,3742.9,1.062757]
[1641229274912,1.20515789,3743.8,3742.9,1.062757]
[1641229275813,1.20515789,3743.8,3743.2,2.00479]
[1641229276012,0.24616232,3743.9,3743.2,2.00479]
[1641229276418,0.24616232,3743.9,3743.4,1.5]
[1641229276613,0.24616232,3743.9,3743.2,2.00479]
[1641229276814,0.24616232,3743.9,3743.3,1.5]
[1641229277016,0.24616232,3744.0,3743.2,2.00479]
[1641229277215,0.24616232,3744.0,3743.4,1.5]
[1641229277414,0.24616232,3744.0,3743.2,2.00479]
[1641229277614,0.24616232,3744.0,3743.2,3.50479]
[1641229277817,0.24616232,3744.0,3743.9,2.00479]
[1641229278015,0.229991,3744.0,3743.9,3.63082162]
[1641229278217,3.20994789,3744.4,3743.9,3.63082162]
[1641229279217,0.23005578,3744.3,3743.9,3.63082162]
[1641229281718,2.132947,3744.4,3743.9,1.62603162]
[1641229281920,3.33984823,3744.0,3743.9,0.87853162]
[1641229282119,3.56983923,3744.0,3743.9,0.87853162]
[1641229282721,3.33984823,3744.0,3743.9,0.87853162]
[1641229282920,2.00479,3744.0,3743.9,0.87853162]
[1641229283221,2.00479,3744.4,3743.9,0.87853162]
[1641229283421,2.132947,3744.4,3743.9,1.46783162]
[1641229284926,2.00479,3744.4,3743.9,1.46783162]
[1641229291440,2.00479,3744.4,3743.9,3.162e-05]
[1641229291642,1.5,3744.0,3742.9,6.54902303]
[1641229291839,32.89788793,3744.2,3742.9,6.54902303]
[1641229292139,4.27396,3743.9,3742.9,6.54902303]
[1641229292340,2.00479,3744.0,3742.9,4.13228393]
[1641229292541,4.274017,3743.9,3742.9,0.406]
[1641229292940,1.33514735,3743.8,3742.9,0.406]
[1641229293142,1.33514735,3743.8,3743.3,0.045757]
[1641229293342,4.274075,3743.7,3743.3,0.045757]
[1641229293542,4.274075,3743.7,3743.4,1.23342055]
[1641229293742,0.229991,3743.6,3743.4,1.23342055]
[1641229293943,1.46328296,3743.8,3743.4,1.23342055]
[1641229294146,4.274017,3743.6,3743.4,1.23342055]
[1641229294345,1.46328296,3743.8,3743.4,1.23342055]
[1641229294942,4.27396,3743.7,3743.4,1.23342055]
[1641229295144,0.229991,3743.6,3743.4,1.23342055]
[1641229295347,1.33512596,3743.8,3743.4,1.23342055]
[1641229295545,1.33512596,3743.8,3743.4,1.80212055]
[1641229295944,2.00479,3744.0,3743.4,1.80212055]
[1641229298047,2.132947,3744.0,3743.4,1.80212055]
[1641229298447,2.00479,3744.0,3743.4,1.80212055]
[1641229298647,2.00479,3744.0,3743.7,0.90083909]
[1641229299351,0.229991,3743.9,3743.7,0.90083909]
[1641229299550,0.938691,3743.9,3743.7,0.90083909]
[1641229299750,0.938691,3743.9,3743.4,1.23342055]
[1641229299751,0.938691,3743.9,3743.8,0.90083909]
[1641229299950,2.438691,3743.9,3743.8,0.90083909]
[1641229300151,2.566848,3743.9,3743.8,3.909e-05]
[1641229300350,3.90215937,3743.9,3743.8,3.909e-05]
[1641229300749,2.566848,3743.9,3743.8,3.909e-05]
[1641229301149,2.40200605,3743.9,3743.8,3.909e-05]
[1641229301352,2.40200605,3743.9,3743.4,1.23342055]
[1641229301549,2.58145774,3743.9,3743.4,1.23342055]
[1641229302153,1.24629969,3743.9,3743.4,1.23342055]
[1641229302350,1.33515805,3743.7,3743.4,1.23342055]
[1641229302550,0.17945169,3743.9,3743.4,1.23342055]
[1641229302751,0.17945169,3743.9,3743.4,1.97732055]
[1641229303150,2.00479,3744.0,3743.4,1.97732055]
[1641229305752,0.128157,3743.9,3743.4,1.97732055]
[1641229305952,2.00479,3744.0,3743.4,1.97732055]
[1641229308054,2.00479,3744.0,3743.4,1.23342055]
[1641229309354,1.33511527,3743.9,3743.4,1.23342055]
[1641229309754,1.20515789,3743.8,3743.4,1.23342055]
[1641229310858,2.00479,3744.0,3743.4,1.23342055]
[1641229312265,2.00479,3744.0,3743.4,2.73496019]
[1641229313263,1.33527928,3743.5,3743.4,2.73496019]
[1641229313563,0.229991,3743.5,3743.4,2.73496019]
[1641229313762,1.33518301,3743.7,3743.4,2.73496019]
[1641229314262,0.229991,3743.6,3743.4,2.73496019]
[1641229314665,1.33518301,3743.7,3743.4,2.73496019]
[1641229315065,1.33518301,3743.7,3743.4,1.23342055]
[1641229315263,0.229991,3743.6,3743.4,1.23342055]
[1641229316063,1.33518301,3743.7,3743.4,1.23342055]
[1641229316463,0.229991,3743.6,3743.4,1.23342055]
[1641229316664,1.33518301,3743.7,3743.4,1.23342055]
[1641229317671,0.229991,3743.6,3743.4,1.23342055]
[1641229317865,1.33518301,3743.7,3743.4,1.23342055]
[1641229318866,3.20994789,3744.0,3743.4,1.23342055]
[1641229319367,2.00479,3744.0,3743.4,1.23342055]
[1641229320270,1.33519192,3743.6,3743.4,1.23342055]
[1641229320468,0.229991,3743.5,3743.4,1.23342055]
[1641229323874,1.20515789,3743.9,3743.4,1.23342055]
[1641229324071,1.20515789,3743.9,3743.4,1.75212055]
[1641229324673,3.33985179,3744.0,3743.4,1.75212055]
[1641229324876,3.33985179,3744.0,3743.4,1.79787755]
[1641229325277,3.33985179,3744.0,3743.4,1.75212055]
[1641229325977,0.13235222,3743.9,3743.4,1.75212055]
[1641229327577,2.83528641,3743.5,3743.4,1.75212055]
[1641229327778,3.79987892,3743.5,3742.5,3.352889]
[1641229327978,0.964391,3743.5,3742.5,3.352889]
[1641229328177,1.3354148,3743.0,3742.5,3.352889]
[1641229329377,1.3354148,3743.0,3742.5,0.75347347]
[1641229329579,1.3354148,3743.0,3742.4,0.045757]
[1641229329877,1.3354148,3743.0,3742.6,0.82267242]
[1641229332587,0.128157,3743.1,3742.6,0.82267242]
[1641229333485,1.3354148,3743.0,3742.6,0.82267242]
[1641229333986,1.3357216,3742.7,3742.6,0.82267242]
[1641229334185,1.5657126,3742.7,3742.6,0.82267242]
[1641229334386,0.229991,3742.7,3742.6,0.82267242]
[1641229334586,0.128157,3743.1,3742.6,0.82267242]
[1641229335686,2.00479,3743.2,3742.6,0.82267242]
[1641229336090,2.00479,3743.2,3742.9,0.90228276]
[1641229336287,0.229991,3743.1,3742.9,1.45698276]
[1641229336485,2.00479,3743.2,3742.9,1.45698276]
[1641229336987,2.00479,3743.2,3743.1,0.90228276]
[1641229337186,2.234781,3743.2,3743.1,1.57556169]
[1641229338592,2.234781,3743.2,3743.1,0.67327893]
[1641229338790,2.00479,3743.2,3743.1,0.67327893]
[1641229338990,2.234781,3743.2,3743.1,0.67327893]
[1641229339192,2.00479,3743.2,3743.1,0.67327893]
[1641229339792,2.234781,3743.2,3743.1,0.67327893]
[1641229340194,1.3352044,3743.6,3743.1,0.67327893]
[1641229340596,1.19993603,3743.8,3743.1,0.67327893]
[1641229340997,1.19993603,3743.8,3743.1,2.17327893]
[1641229341397,1.19993603,3743.8,3743.1,0.67327893]
[1641229341598,0.11247153,3743.7,3743.6,0.90288002]
[1641229342296,0.11247153,3743.7,3743.6,2.21648374]
[1641229342496,1.19993603,3743.9,3743.6,1.31360372]
[1641229342797,4.00958,3744.0,3743.6,1.31360372]
[1641229344199,4.00958,3744.0,3743.6,2.81818765]
[1641229344901,4.00958,3744.0,3743.6,1.31360372]
[1641229345901,4.00958,3744.0,3743.6,2.81818765]
[1641229346904,4.00958,3744.0,3743.6,1.31360372]
[1641229347103,1.33514914,3743.8,3743.6,1.31360372]
[1641229347302,4.00958,3744.0,3743.6,1.31360372]
[1641229347504,1.33518301,3743.7,3743.6,1.31360372]
[1641229347703,4.137737,3744.0,3743.6,1.31360372]
[1641229348705,4.137737,3744.0,3743.9,0.90280251]
[1641229348903,4.367728,3744.0,3743.9,0.90280251]
[1641229349504,4.00958,3744.0,3743.9,0.90280251]
[1641229349905,5.34467744,3744.0,3743.9,0.90280251]
[1641229350104,5.57466844,3744.0,3743.9,0.90280251]
[1641229350506,5.57466844,3744.0,3743.8,0.90280251]
[1641229350708,5.43886107,3744.0,3743.8,0.90280251]
[1641229351105,0.229991,3743.9,3743.8,0.90280251]
[1641229351307,0.229991,3743.9,3743.7,0.5269]
[1641229351507,0.229991,3743.9,3743.6,1.35936072]
[1641229351707,1.33511883,3743.8,3743.6,1.31360372]
[1641229352706,4.00958,3744.0,3743.6,1.31360372]
[1641229353106,1.628157,3743.9,3743.6,1.31360372]
[1641229353409,1.33550397,3743.7,3742.8,3.41271091]
[1641229353607,4.15874563,3743.8,3743.3,1.50468768]
[1641229354006,15.63874563,3743.8,3743.3,1.50468768]
[1641229354206,15.63874563,3743.8,3742.8,3.41271091]
[1641229354409,1.5,3742.9,3742.8,4.5735062]
[1641229354608,2.531891,3742.9,3742.8,1.16079529]
[1641229354807,1.031891,3742.9,3742.8,1.16079529]
[1641229355008,0.8019,3742.9,3742.8,1.16079529]
[1641229355609,1.031891,3742.9,3742.8,1.16079529]
[1641229356010,0.8019,3742.9,3742.8,1.16079529]
[1641229356208,0.91085,3742.9,3742.8,1.16079529]
[1641229356608,1.140841,3742.9,3742.8,1.16079529]
[1641229356808,1.031891,3742.9,3742.8,1.16079529]
[1641229357010,0.8019,3742.9,3742.8,1.16079529]
[1641229357308,2.00479,3743.1,3742.8,1.16079529]
[1641229357510,0.229991,3743.0,3742.8,1.16079529]
[1641229358109,0.09420762,3743.0,3742.8,1.16079529]
[1641229359009,2.00479,3743.1,3742.8,1.16079529]
[1641229359209,1.33530068,3743.3,3742.8,1.16079529]
[1641229359715,2.53507982,3743.8,3743.2,1.5]
[1641229359910,2.53507982,3743.8,3743.2,2.2909]
[1641229360111,2.00479,3744.0,3743.2,2.2909]
[1641229360112,1.19993603,3743.9,3743.2,0.7909]
[1641229360410,1.19993603,3743.9,3743.2,2.79569]
[1641229360610,0.128157,3743.8,3743.2,2.79569]
[1641229360812,1.46329722,3743.8,3743.2,2.79569]
[1641229361213,0.128157,3743.8,3743.2,2.79569]
[1641229361610,1.19993603,3743.9,3743.2,2.79569]
[1641229361910,2.00479,3744.0,3743.2,2.79569]
[1641229362513,2.00479,3744.0,3743.4,1.5]
[1641229362712,2.00479,3744.0,3743.5,0.045757]
[1641229362913,2.132947,3744.0,3743.2,2.79569]
[1641229363712,3.20472603,3744.4,3743.2,3.63857982]
[1641229363916,1.19993603,3744.5,3743.9,1.5]
[1641229364613,2.24988005,3745.3,3744.4,1.5]
[1641229364814,2.24988005,3745.3,3744.5,0.045757]
[1641229365014,1.19403283,3744.7,3744.5,0.045757]
[1641229365814,1.19403283,3744.7,3744.6,1.06881901]
[1641229366314,2.24988005,3745.6,3744.6,1.06881901]
[1641229366515,2.24988005,3745.6,3745.3,2.00479]
[1641229366715,0.358148,3745.5,3745.4,0.8326928]
[1641229367316,0.128157,3745.5,3745.4,0.8326928]
[1641229367517,2.00479,3746.2,3745.4,0.8326928]
[1641229367919,0.10339478,3745.5,3745.4,0.8326928]
[1641229368118,0.42460309,3746.3,3745.4,0.8326928]
[1641229368320,0.42460309,3746.3,3745.4,1.4211928]
[1641229368522,0.42460309,3746.3,3746.2,2.00479]
[1641229368723,0.42460309,3746.3,3746.2,2.78369]
[1641229369120,5.429,3746.4,3746.2,2.78369]
[1641229369722,2.24988005,3746.7,3746.2,3.96748905]
[1641229369921,1.33415695,3746.5,3746.2,3.96748905]
[1641229370123,2.24988005,3746.7,3746.2,4.01324605]
[1641229370324,4.25467005,3747.0,3746.2,4.01324605]
[1641229370523,1.3340466,3746.9,3746.2,4.01324605]
[1641229370723,4.25467005,3747.0,3746.2,4.01324605]
[1641229371325,0.128157,3746.9,3746.2,4.01324605]
[1641229371923,2.24988005,3747.0,3746.2,4.01324605]
[1641229372324,5.429,3747.2,3746.2,4.01324605]
[1641229372526,1.33399322,3747.0,3746.7,2.00479]
[1641229372726,5.429,3747.2,3746.7,2.87065737]
[1641229374527,5.429,3747.2,3747.1,2.00479]
[1641229374927,6.76292204,3747.2,3747.1,2.00479]
[1641229375127,5.429,3747.2,3747.1,2.00479]
[1641229375628,6.6214879,3747.2,3747.1,2.00479]
[1641229376329,6.8514789,3747.2,3747.1,2.00479]
[1641229376530,5.658991,3747.2,3747.1,2.00479]
[1641229376727,5.429,3747.2,3747.1,2.00479]
[1641229377530,1.1924879,3747.2,3747.1,2.00479]
[1641229377731,1.78893583,3747.8,3747.1,2.00479]
[1641229378532,1.78893583,3747.8,3747.7,2.00479]
[1641229378730,1.78893583,3747.8,3747.7,2.589647]
[1641229378932,2.99984007,3748.3,3747.7,3.31364199]
[1641229379131,0.42460309,3748.1,3747.7,3.31364199]
[1641229379331,2.21419223,3748.1,3747.7,3.31364199]
[1641229379931,2.21419223,3748.1,3747.7,3.26788499]
[1641229380131,0.42460309,3748.1,3747.7,2.72878499]
[1641229380534,7.43379,3748.5,3747.7,2.72878499]
[1641229380733,7.43379,3748.5,3747.8,0.045757]
[1641229380934,1.33360895,3748.1,3747.8,0.045757]
[1641229381133,7.43379,3748.5,3747.8,0.045757]
[1641229381335,7.43379,3748.5,3747.8,0.815257]
[1641229381833,2.00479,3748.5,3747.8,0.815257]
[1641229382132,2.24988005,3748.8,3747.8,0.815257]
[1641229382633,0.15056585,3748.7,3748.2,2.00479]
[1641229382834,0.42460309,3748.8,3748.2,2.90321381]
[1641229383833,0.42460309,3748.8,3748.2,4.40321381]
[1641229384239,0.42460309,3748.8,3748.2,2.90321381]
[1641229384535,0.42460309,3748.8,3748.7,2.00479]
[1641229384732,0.42460309,3748.8,3748.7,2.050547]
[1641229384932,0.42460309,3748.8,3748.7,3.37880282]
[1641229385331,0.42460309,3748.8,3748.7,3.33304582]
[1641229386334,0.229991,3748.8,3748.7,3.33304582]
[1641229386937,5.429,3749.2,3748.7,3.85574582]
[1641229387334,0.128157,3749.1,3748.7,3.85574582]
[1641229387535,5.429,3749.2,3748.7,3.85574582]
[1641229388034,2.00479,3749.4,3748.7,3.85574582]
[1641229388035,2.24988005,3749.3,3748.7,3.85574582]
[1641229389037,1.79875993,3749.0,3748.7,4.7576715]
[1641229389438,2.24988005,3749.3,3748.9,1.5]
[1641229389637,2.24988005,3749.3,3748.7,4.7576715]
[1641229390034,2.24988005,3749.4,3748.8,0.90192568]
[1641229390437,2.24988005,3749.4,3749.1,1.5]
[1641229390739,2.24988005,3749.4,3749.3,2.00479]
[1641229391337,2.24988005,3749.4,3749.3,2.7334326]
[1641229391738,2.99984007,3749.6,3749.3,2.7334326]
[1641229391939,4.12478009,3750.2,3749.5,1.5]
[1641229392140,2.24894318,3749.9,3749.7,1.5]
[1641229392338,2.99859091,3750.2,3749.7,1.5]
[1641229392537,4.92715654,3750.5,3750.1,5.50958]
[1641229392738,4.92715654,3750.5,3750.4,1.5]
[1641229392937,4.92715654,3750.5,3750.4,0.7838]
[1641229393338,0.86318987,3750.5,3750.4,1.95722286]
[1641229393637,4.12478009,3750.7,3750.4,1.95722286]
[1641229393841,30.9117,3751.6,3750.4,1.95722286]
[1641229394037,3.0,3751.6,3750.4,3.45722286]
[1641229394237,3.0,3751.6,3750.4,1.95722286]
[1641229394238,0.15044896,3751.5,3750.4,1.95722286]
[1641229394637,0.15044896,3751.5,3751.0,2.00479]
[1641229394840,1.5,3751.3,3751.0,2.00479]
[1641229395037,0.229991,3751.2,3751.0,2.00479]
[1641229395437,0.15044896,3751.1,3751.0,2.00479]
[1641229395737,1.65044896,3751.1,3750.1,2.00479]
[1641229395938,0.15044896,3751.1,3750.1,2.00479]
[1641229396450,5.429,3751.7,3750.2,0.96131497]
[1641229396647,2.00479,3751.2,3750.2,0.96131497]
[1641229397050,2.00479,3752.0,3750.7,1.5]
[1641229397250,2.00479,3752.0,3750.9,1.5]
[1641229397454,1.33226929,3751.9,3750.9,1.5]
[1641229397652,0.15042133,3751.9,3750.7,0.7061]
[1641229397850,2.00479,3752.0,3750.7,0.7061]
[1641229398051,0.15042766,3751.8,3750.7,0.7061]
[1641229398450,0.15042766,3751.9,3750.7,1.47393886]
[1641229398650,2.00479,3752.0,3751.2,2.00479]
[1641229398850,2.132947,3752.0,3751.3,0.045757]
[1641229399052,0.15042488,3751.9,3751.3,0.045757]
[1641229399451,0.15042488,3751.9,3751.4,0.83680385]
[1641229399652,1.5,3751.9,3751.4,0.83680385]
[1641229400053,2.00479,3752.0,3751.4,0.83680385]
[1641229400656,1.5,3751.9,3751.4,0.83680385]
[1641229400953,0.27858328,3751.8,3751.4,0.83680385]
[1641229401154,0.128157,3751.8,3751.4,0.83680385]
[1641229403957,2.00479,3752.4,3751.4,0.83680385]
[1641229404257,1.5,3752.1,3751.4,0.83680385]
[1641229404556,0.128157,3752.0,3751.4,0.83680385]
[1641229404757,0.128157,3752.0,3751.5,0.045757]
[1641229404957,2.00479,3752.4,3751.5,0.045757]
[1641229405357,0.15041364,3752.3,3751.5,0.739257]
[1641229405956,1.3322054,3752.0,3751.5,0.739257]
[1641229406157,1.65041364,3752.3,3751.5,0.6935]
[1641229406356,0.128157,3752.2,3751.5,0.6935]
[1641229406758,0.27857534,3752.2,3751.5,0.739257]
[1641229406957,0.128157,3752.2,3751.5,0.6935]
[1641229407457,3.0,3752.0,3751.5,0.6935]
[1641229407959,1.03018187,3752.2,3751.5,0.6935]
[1641229408159,0.128157,3752.2,3751.5,0.6935]
[1641229408760,0.128157,3752.2,3751.6,2.050547]
[1641229409060,0.128157,3752.2,3752.1,1.80476501]
[1641229409261,0.128157,3752.2,3751.6,2.050547]
[1641229409460,2.00479,3752.4,3751.6,2.050547]
[1641229409662,0.128157,3752.3,3751.6,2.050547]
[1641229409863,1.628157,3752.3,3751.6,2.00479]
[1641229410065,0.86591494,3751.9,3751.6,2.00479]
[1641229410264,0.229991,3751.8,3751.6,2.00479]
[1641229410463,1.3321912,3752.1,3751.6,2.00479]
[1641229410764,1.3321912,3752.1,3751.5,0.045757]
[1641229411163,1.3321912,3752.1,3751.6,1.1231763]
[1641229411364,0.128157,3752.3,3751.6,1.1231763]
[1641229411563,2.00479,3752.4,3751.6,1.1231763]
[1641229411863,2.132947,3752.4,3751.6,1.1231763]
[1641229412262,1.33215216,3752.2,3751.6,1.1231763]
[1641229412864,1.33215216,3752.2,3751.6,3.1279663]
[1641229413063,2.98155244,3752.4,3751.6,3.1279663]
[1641229413864,2.85339544,3752.4,3751.6,3.1279663]
[1641229414066,4.18547662,3752.4,3751.6,3.1279663]
[1641229414965,14.33339544,3752.4,3751.6,3.1279663]
[1641229415166,0.128157,3752.3,3751.6,3.1279663]
[1641229415968,0.84860544,3752.4,3751.6,3.1279663]
[1641229416268,5.429,3752.5,3752.2,1.5]
[1641229416568,5.429,3752.5,3752.3,0.045757]
[1641229416768,5.429,3752.5,3752.4,2.00479]
[1641229416969,0.229991,3752.5,3752.4,2.00479]
[1641229417169,0.358148,3752.5,3752.4,2.00479]
[1641229417769,0.229991,3752.5,3752.4,2.00479]
[1641229417971,5.429,3753.1,3752.4,2.00479]
[1641229418169,5.429,3753.1,3752.4,3.0477536]
[1641229418370,5.429,3753.1,3752.4,3.6613536]
[1641229418570,5.429,3753.1,3752.4,3.7071106]
[1641229418571,1.33193924,3752.8,3752.4,3.7071106]
[1641229419173,2.00479,3752.9,3752.4,3.7071106]
[1641229419873,2.132947,3752.9,3752.4,3.7071106]
[1641229420073,2.132947,3752.9,3752.4,3.6613536]
[1641229420575,2.132947,3752.9,3752.4,3.0477536]
[1641229420974,2.00479,3752.9,3752.4,3.0477536]
[1641229421277,1.3319694,3752.7,3752.4,3.0477536]
[1641229421475,2.00479,3752.9,3752.4,3.0477536]
[1641229422776,2.00479,3752.9,3752.4,3.0935106]
[1641229423975,2.00479,3752.9,3752.4,3.0477536]
[1641229424177,0.128157,3753.0,3752.4,3.0477536]
[1641229424375,2.00479,3753.4,3752.4,3.0477536]
[1641229424577,1.5,3753.3,3752.4,3.0477536]
[1641229424778,0.128157,3753.2,3752.5,0.045757]
[1641229425479,2.00479,3753.4,3752.5,0.045757]
[1641229426379,1.5,3753.3,3752.5,0.045757]
[1641229426778,0.128157,3753.2,3752.5,0.045757]
[1641229426978,0.128157,3753.2,3752.6,0.045757]
[1641229427681,0.128157,3753.2,3752.4,3.0477536]
[1641229429081,2.00479,3753.4,3752.5,0.045757]
[1641229429284,3.33652702,3753.4,3752.5,0.045757]
[1641229429684,0.128157,3753.3,3752.5,0.045757]
[1641229430082,3.33652702,3753.4,3752.5,0.045757]
[1641229432185,0.128157,3753.3,3752.5,0.045757]
[1641229433689,1.33173702,3753.4,3752.5,0.045757]
[1641229434691,0.128157,3753.3,3752.5,0.045757]
[1641229434892,0.742957,3753.3,3753.0,2.00479]
[1641229435090,0.6148,3753.3,3753.1,1.22033451]
[1641229437495,1.33153842,3753.9,3753.1,1.22033451]
[1641229437895,0.95895654,3754.1,3753.1,1.22033451]
[1641229438096,2.00479,3754.2,3753.1,1.22033451]
[1641229438703,1.33149941,3754.0,3753.1,1.22033451]
[1641229438997,2.00479,3754.2,3753.4,2.00479]
[1641229439199,2.00479,3754.2,3753.5,0.045757]
[1641229439398,0.128157,3754.1,3753.6,0.74010467]
[1641229439800,3.33621673,3754.2,3753.6,0.74010467]
[1641229441500,2.00479,3754.2,3753.6,0.74010467]
[1641229443701,3.336238,3754.2,3753.6,0.74010467]
[1641229444302,2.132947,3754.2,3753.6,0.74010467]
[1641229444502,1.3315136,3754.0,3753.6,0.74010467]
[1641229445104,2.00479,3754.2,3753.6,0.74010467]
[1641229446104,3.33621318,3754.2,3753.6,0.74010467]
[1641229446506,3.46437018,3754.2,3753.6,0.74010467]
[1641229446702,3.33621318,3754.2,3753.6,0.74010467]
[1641229448308,2.00479,3754.2,3753.6,0.74010467]
[1641229454012,2.65889,3754.2,3753.6,0.74010467]
[1641229454314,2.787047,3754.2,3753.6,0.74010467]
[1641229454611,2.65889,3754.2,3753.6,0.74010467]
[1641229456215,5.618495,3754.2,3753.6,0.74010467]
[1641229456416,18.767047,3754.2,3753.0,2.00479]
[1641229457016,2.81707112,3754.0,3753.0,2.00479]
[1641229457217,2.81707112,3754.0,3753.1,1.18029949]
[1641229459723,2.81707112,3754.0,3753.2,0.045757]
[1641229459924,5.787047,3754.2,3753.2,0.045757]
[1641229459925,5.132947,3754.2,3753.2,0.045757]
[1641229460727,2.132947,3754.2,3753.2,0.045757]
[1641229461127,2.132947,3754.2,3753.1,1.18029949]
[1641229461128,3.46438968,3754.2,3753.1,1.18029949]
[1641229461930,3.46438968,3754.2,3753.1,2.68029949]
[1641229462129,3.46438968,3754.2,3753.2,1.5]
[1641229462428,3.46438968,3754.2,3753.1,1.18029949]
[1641229463230,2.132947,3754.2,3753.1,1.18029949]
[1641229464434,2.132947,3754.2,3753.1,2.68029949]
[1641229464731,2.132947,3754.2,3753.1,1.18029949]
[1641229465532,3.0,3753.5,3753.1,1.18029949]
[1641229465733,0.128157,3753.4,3753.1,1.18029949]
[1641229465933,0.229991,3753.3,3753.1,1.18029949]
[1641229466832,0.744157,3753.4,3753.1,1.18029949]
[1641229467235,0.744157,3753.4,3753.2,1.50225372]
[1641229467733,0.616,3753.4,3753.2,1.50225372]
[1641229467934,2.00479,3754.2,3753.2,1.50225372]
[1641229468134,1.33147814,3754.1,3753.2,1.50225372]
[1641229468333,1.33147814,3754.1,3753.1,1.18029949]
[1641229468733,2.00479,3754.2,3753.1,1.18029949]
[1641229469134,3.33623268,3754.2,3753.1,1.18029949]
[1641229469639,2.00479,3754.2,3753.6,1.49802983]
[1641229469836,2.132947,3754.2,3753.7,0.82097084]
[1641229470437,2.132947,3754.2,3753.7,2.31900067]
[1641229471038,3.46438968,3754.2,3753.7,2.31900067]
[1641229471239,2.132947,3754.2,3753.7,2.31900067]
[1641229473239,2.132947,3754.2,3753.7,0.82097084]
[1641229474946,2.132947,3754.2,3753.7,2.31900067]
[1641229475342,2.00479,3754.2,3753.7,2.31900067]
[1641229475744,0.128157,3754.1,3753.7,2.31900067]
[1641229475943,2.00479,3754.2,3753.7,2.31900067]
[1641229477846,0.128157,3754.1,3753.9,1.49802983]
[1641229478048,0.901648,3754.1,3753.9,1.49802983]
[1641229478846,0.901648,3754.1,3753.7,2.36475767]
[1641229479048,0.901648,3754.1,3753.7,2.31900067]
[1641229480349,0.901648,3754.1,3753.7,0.82097084]
[1641229480350,0.671657,3754.1,3753.7,0.82097084]